Cogmind - Beta 16.1 @@@ ROGUE MODE // 2026.04.06 @ 18:58:09 Player: star Result: Destroyed by P-80 Master with Gamma Rifle Performance ------------- Evolutions (8) 4000 Regions Visited (27) 5400 Robots Destroyed (310) 1550 Value Destroyed (16163) 16163 Prototype IDs (58) 1160 Alien Tech Used (1) 200 Bonus (14337) 14337 TOTAL SCORE: 42810 Bonus ------- Triggered High Security 500 Triggered Max Security 1000 High Alert Combat Kills 3989 Follower Combat Kills 3161 Entered Garrisons 800 Used RIF Installer 2500 Network Hubs Disabled 400 Aligned with FarCom 300 Met Data Miner 300 Built Enhanced Grunts 300 A7 Reached Mainframe 300 Met R17 at Cetus 500 Scanned by Researcher 500 Friendly Fire -213 Cogmind --------- Core Integrity 0/1450 Matter 295/300 Energy 100/100 System Corruption 20% Temperature Cool (0) Movement Core (50) Location -2/Quarantine Parts ------- > --- POWER (2) -------- (None) > --- PROPULSION (7) --- (None) > --- UTILITY (10) ----- Advanced Signal Interpreter > --- WEAPON (4) ------- (None) > --- INVENTORY (5) ---- Improved Point Defense System Hacking Suite Drone Bay (2/2) Compact HERF Cannon Segregator Peak State ------------ > --- POWER ------------ Neutrino Core > --- PROPULSION ------- Myomer Leg Biometal Leg Antigrav Array Antigrav Array > --- UTILITY ---------- Compact Battery Advanced Signal Interpreter Advanced Targeting Computer Advanced Melee Analysis Suite Launcher Guidance Computer Core Analyzer Improved Weapon Shielding Relay Coupler [Proto] Long-range Tractor Beam > --- WEAPON ----------- Long-range Proton Cannon Long-range Proton Cannon Compact HERF Cannon Improved Remote Datajack > --- INVENTORY -------- Improved Point Defense System Hacking Suite Drone Bay Compact HERF Cannon [Rating: 123] Favorites ----------- Power Improved Deuterium Engine Engine Improved Deuterium Engine Power Core Micro Nuclear Core Reactor Quantum Reactor Propulsion Combat Airjet Treads Light Treads Leg Aluminum Leg Wheel Compact Wheel Hover Unit Combat Airjet Flight Unit Improved Surge Thruster Utility Launcher Guidance Computer Device Transmission Jammer Storage Medium Storage Unit Processor Launcher Guidance Computer Hackware Relay Coupler [Swarmer] Protection Improved Light Armor Plating Weapon Gauss Rifle Energy Gun Advanced Variable Charge Gun Energy Cannon Proton Cannon Ballistic Gun Gauss Rifle Ballistic Cannon Heavy Mass Driver Launcher Mini Grenade Launcher Special Weapon Remote Datajack Impact Weapon Powered Hammer Build | -11 -10 -9 -9 -9 -8 -8 -8 -8 -8 -7 -7 -7 -7 -7 -7 -6 -6 -6 -6 -6 -6 -5 -5 -4 -3 -2 -2 ------- Run | Yrd Mat Mat Min Exi Min Mat Gar Mat Gar Fac Gar Fac Low Low Dat Pro Fac Ext Cet Arc Hub Fac Gar Fac Res Res Qua Slots Evolved 16 | . . 2 . . . 2 . . . 2 . . . . . . 2 . . . . 2 . 2 2 2 . Power 1 | . . . . . . . . . . . . . . . . . . . . . . . . 1 . . . Propulsion 5 | . . . . . . 1 . . . . . . . . . . 1 . . . . . . 1 2 . . Utility 8 | . . 1 . . . 1 . . . 2 . . . . . . . . . . . 2 . . . 2 . Weapon 2 | . . 1 . . . . . . . . . . . . . . 1 . . . . . . . . . . Parts Attached 230 | 6 5 15 . . . 4 25 3 7 11 22 5 2 5 . 6 36 23 10 . 1 . 20 5 5 6 8 Power 28 | 1 . 1 . . . . 4 . 1 2 . 1 1 . . 1 5 3 1 . . . 3 1 1 . 2 Engine 12 | 1 . 1 . . . . 2 . 1 . . 1 . . . 1 3 . . . . . 1 . . . 1 Core 11 | . . . . . . . 2 . . 2 . . 1 . . . 2 3 . . . . . . 1 . . Reactor 5 | . . . . . . . . . . . . . . . . . . . 1 . . . 2 1 . . 1 Propulsion 57 | 2 . 1 . . . 2 5 . 1 3 9 2 1 2 . 1 8 6 2 . . . 5 1 3 . 3 Treads 15 | . . . . . . . . . . . 3 2 1 2 . 1 . 4 2 . . . . . . . . Leg 14 | . . . . . . . . . . . 5 . . . . . 4 2 . . . . . . 1 . 2 Wheel 3 | 2 . . . . . . . . . . . . . . . . 1 . . . . . . . . . . Hover 16 | . . 1 . . . 2 5 . 1 3 1 . . . . . 1 . . . . . . . 2 . . Flight 9 | . . . . . . . . . . . . . . . . . 2 . . . . . 5 1 . . 1 Utility 81 | 1 3 5 . . . 1 7 2 2 3 9 2 . 3 . 3 15 7 1 . 1 . 9 2 . 2 3 Device 18 | . . . . . . 1 . . . 1 1 . . 2 . 3 2 2 . . . . 4 1 . 1 . Storage 4 | 1 1 1 . . . . . . . . . . . . . . . . . . . . . . . 1 . Processor 18 | . 1 1 . . . . 2 . . . . . . . . . 6 4 . . 1 . 2 1 . . . Hackware 22 | . . . . . . . 3 2 2 1 6 2 . . . . 3 . . . . . 2 . . . 1 Protection 19 | . 1 3 . . . . 2 . . 1 2 . . 1 . . 4 1 1 . . . 1 . . . 2 Artifact . | . . . . . . . . . . . . . . . . . . . . . . . . . . . . Weapon 64 | 2 2 8 . . . 1 9 1 3 3 4 . . . . 1 8 7 6 . . . 3 1 1 4 . Energy Gun 13 | 2 2 3 . . . . 1 . . 2 . . . . . . 1 . 1 . . . 1 . . . . Energy Cannon 8 | . . . . . . . . . . . . . . . . . 1 3 . . . . . . . 4 . Ballistic Gun 23 | . . 5 . . . . 6 . 1 . . . . . . . 2 3 4 . . . 2 . . . . Ballistic Cannon 8 | . . . . . . . . . . . 3 . . . . 1 4 . . . . . . . . . . Launcher 7 | . . . . . . 1 1 . 2 1 . . . . . . . 1 . . . . . 1 . . . Special Weapon 4 | . . . . . . . 1 1 . . . . . . . . . . 1 . . . . . 1 . . Impact Weapon 1 | . . . . . . . . . . . 1 . . . . . . . . . . . . . . . . Slashing Weapon . | . . . . . . . . . . . . . . . . . . . . . . . . . . . . Piercing Weapon . | . . . . . . . . . . . . . . . . . . . . . . . . . . . . Special Melee Weapon . | . . . . . . . . . . . . . . . . . . . . . . . . . . . . Unidentified Prototypes 8 | . . 3 . . . . . . . . . . . 1 . . 2 . . . . . . 1 . . 1 Corrupted Parts 8 | . . . . . . . 2 . 1 . 1 . . . . . . 1 3 . . . . . . . . System Corruption 29 | . . . . . . . 3 . 3 . 6 . . . . . . 2 15 . . . . . . . . Parts Lost 102 | . . 4 . . . . 10 . 5 2 9 . 2 1 . 8 9 6 4 . 1 . 12 9 . . 20 Power 14 | . . 1 . . . . 2 . 1 1 . . 1 . . 1 1 1 . . . . 2 1 . . 2 Propulsion 33 | . . 1 . . . . 1 . 1 . 7 . . 1 . 3 2 3 1 . . . 2 5 . . 6 Utility 27 | . . . . . . . 3 . 1 . 2 . . . . 2 2 1 2 . 1 . 3 2 . . 8 Weapon 28 | . . 2 . . . . 4 . 2 1 . . 1 . . 2 4 1 1 . . . 5 1 . . 4 Highest Loss Streak 16 | . . 2 . . . . 4 . 3 1 2 . 1 1 . 5 4 2 2 . 1 . 8 9 . . 16 To Critical Strikes 4 | . . . . . . . . . . . . . . . . 1 . . 1 . . . 1 . . . 1 Average Backups 7 | . 6 9 10 10 10 7 9 8 7 8 9 8 8 8 9 7 6 4 4 5 5 5 4 4 3 5 4 Power . | . . . . . . . . 1 . . . . . . . . 1 1 . 1 1 1 . . . . . Propulsion . | . . 2 3 3 3 1 2 1 . 1 . . 1 . . . . . . . . . . . . . . Utility 3 | . 1 2 2 2 3 2 3 3 3 4 5 5 4 5 6 6 4 1 1 1 1 1 2 3 3 4 3 Weapon 2 | . 4 4 5 4 4 4 2 1 2 2 2 2 2 3 3 1 . . 1 3 3 3 1 . . . 1 Tool/Special . | . . . . . . . . . . . . . . . . . . . . . . . . . . . . Unused Backups 44 | . . 5 . 1 . . 4 . 4 10 4 . . . . . 5 3 1 . . . . 2 . . 5 Power 4 | . . . . . . . 1 . . 1 . . . . . . . 2 . . . . . . . . . Propulsion 3 | . . . . . . . 2 . . 1 . . . . . . . . . . . . . . . . . Utility 27 | . . 4 . . . . . . 4 7 3 . . . . . 5 . . . . . . 1 . . 3 Weapon 9 | . . 1 . 1 . . 1 . . 1 1 . . . . . . 1 1 . . . . . . . 2 Tool/Special 1 | . . . . . . . . . . . . . . . . . . . . . . . . 1 . . . Average Slot Usage (%) 84 | . 98 91 88 88 88 93 95 99 97 91 89 92 86 81 78 79 53 94 82 86 85 76 81 76 46 59 53 Engine 3 | . 14 10 11 11 11 9 3 9 8 2 . 1 3 . . 3 4 . . . . . . 2 . . . Core 3 | . . . . . . . 4 . . 4 7 5 2 7 7 1 . 5 . . . . . . 2 4 2 Treads 6 | . . . . . . . . . . . 5 23 23 22 23 15 1 8 12 13 13 11 7 . . . . Leg 3 | . . . . . . . . . . . 9 . . . . . 4 13 . . . . . . 3 4 6 Wheel 1 | . 28 14 11 11 11 . . . . . . . . . . . . . . . . . . . . . . Hover 6 | . . . . . . 25 26 27 27 21 3 . . . . . . . . . . . . . 7 8 6 Device 3 | . . . . . . 3 . . . 1 . 4 4 7 7 12 6 7 3 6 3 . 5 2 . . 2 Storage 5 | . 14 11 11 11 11 9 9 9 9 6 7 7 7 7 7 7 3 . . . . . . . . . 2 Processor 14 | . 4 11 11 11 11 9 17 18 18 15 7 7 7 7 7 7 6 24 31 26 27 29 30 33 23 21 17 Hackware 7 | . . . . . . . . 8 7 11 19 25 22 15 15 9 1 . . . . . 2 5 4 4 1 Protection 4 | . 8 11 11 11 11 9 5 . . 2 9 . . 5 7 6 2 4 1 6 6 5 3 . . . . Energy Gun 3 | . 28 18 11 11 11 9 4 . . 5 . . . . . . . . 5 6 6 5 8 3 . . . Energy Cannon 1 | . . . . . . . . . . . . . . . . . 2 7 4 . . . . . . 10 8 Ballistic Gun 7 | . . 13 22 22 22 17 17 22 18 8 . . . . . . 1 11 12 13 13 11 9 3 . . . Ballistic Cannon 3 | . . . . . . . . . . . 6 7 7 7 1 7 10 5 . . . . . . . . . Launcher 1 | . . . . . . . . 2 6 2 1 . . . . 4 . . . . . . . 1 . . . Special Weapon 1 | . . . . . . . 1 2 1 4 1 6 6 . . . . . 2 6 6 5 3 . 2 4 2 Peak Build Rating 123 | 6 10 19 19 20 20 30 47 46 46 56 53 49 47 47 46 47 67 67 106 106 106 102 114 90 85 114 123 Average Rating 49 | 4 8 14 19 19 20 29 40 44 43 46 44 45 42 44 35 44 38 61 83 105 104 102 93 77 77 103 87 On Entrance 50 | . 6 10 19 19 20 20 30 43 43 44 47 49 43 41 46 46 41 66 52 106 106 102 102 90 32 85 114 Avg Prop Armor Cover (%) 9 | . . 4 . . . . . . 11 . 3 . . . . . 2 8 . . . . . . 10 5 15 Naked Turns 111 | . . . . . . . . . . . . . . . . . 111 . . . . . . . . . . Heaviest Build 61 | 12 32 32 31 31 31 32 35 32 32 43 51 47 51 53 47 57 61 50 51 51 51 47 55 36 18 46 50 Greatest Support 160 | 26 26 26 16 16 16 24 36 36 36 36 60 60 68 68 68 68 64 79 160 160 160 160 160 23 52 52 52 Greatest Overweight (x) 14 | . 1 3 1 1 1 1 1 . 9 1 5 . . . . 2 10 2 1 . . . 6 5 . 14 2 Average Overweight (x) . | . . . 1 1 1 1 . . . . 1 . . . . . 1 . . . . . . . . . . Largest Inventory Capacity 15 | 8 15 15 10 10 10 10 10 10 10 10 10 10 10 10 10 10 10 5 5 5 5 5 5 5 5 5 5 Average Capacity 8 | 6 12 10 10 10 10 10 10 10 10 9 10 10 10 10 10 10 7 5 5 5 5 5 5 5 5 5 5 Most Carried 10 | 1 10 10 10 10 10 9 10 10 10 10 10 10 10 10 10 10 10 5 5 5 5 5 5 5 5 5 5 Average Carried 7 | . 6 9 10 9 10 7 9 9 8 8 9 9 9 9 10 7 6 4 4 5 5 5 4 4 3 4 4 Final Capacity 15 | 8 15 10 10 10 10 10 10 10 10 10 10 10 10 10 10 10 5 5 5 5 5 5 5 5 5 5 5 Final Carried 10 | 1 10 10 10 10 10 7 10 10 9 10 10 10 10 10 10 7 2 4 5 5 5 5 5 3 5 5 5 Class Distribution -------------------- 27% | Scavenger-Gunner 16% | Commander-Gunner 11% | Gunner 10% | Mutant 7% | Bothacker-Skirmisher 6% | Bothacker-Mutant 5% | Scavenger-Mutant 5% | Skirmisher 4% | Bothacker-Gunner Dominant Class ---------------- Mutant | -10/Materials Gunner | -9/Materials Gunner | -9/Mines Gunner | -9/Exiles Skirmisher | -8/Mines Skirmisher | -8/Materials Scavenger-Gunner | -8/Garrison Commander-Gunner | -8/Materials Scavenger-Gunner | -8/Garrison Scavenger-Gunner | -7/Factory Bothacker-Mutant | -7/Garrison Bothacker-Skirmisher | -7/Factory Bothacker-Gunner | -7/Lower Caves Scavenger-Mutant | -7/Lower Caves Mutant | -7/Data Miner Gunner | -6/Proximity Caves Skirmisher | -6/Factory Commander-Gunner | -6/Extension Commander-Gunner | -6/Cetus Commander-Gunner | -6/Archives Scavenger-Gunner | -6/Hub_04(d) Scavenger-Gunner | -5/Factory Scavenger-Gunner | -5/Garrison Scavenger-Mutant | -4/Factory Mutant | -3/Research Gunner | -2/Research Gunner | -2/Quarantine Resources | -11 -10 -9 -9 -9 -8 -8 -8 -8 -8 -7 -7 -7 -7 -7 -7 -6 -6 -6 -6 -6 -6 -5 -5 -4 -3 -2 -2 ----------- Run | Yrd Mat Mat Min Exi Min Mat Gar Mat Gar Fac Gar Fac Low Low Dat Pro Fac Ext Cet Arc Hub Fac Gar Fac Res Res Qua Matter Collected 10805 | 243 27 376 . . . 161 1567 134 861 265 1425 300 514 372 . 574 1152 1094 319 40 66 . 764 178 . 83 290 Remotely 1505 | . . . . . . 157 129 . . . . . . . . 389 457 . . . . . . . . 83 290 Salvage Created 11502 | . 47 1243 . . . 134 1876 126 649 264 1242 78 320 473 . 511 928 1144 166 60 408 . 1683 130 . . 20 Parts 574 | . 8 84 . . . 6 100 6 38 25 49 2 15 13 . 21 41 42 8 . 26 . 82 6 . . 2 Haulers Intercepted 10 | . . 3 . . . . . . . . . . . 1 . . 2 2 . . . . . 2 . . . Recyclers Shooed 2 | . . 1 . . . . . . . . . . . . . . . 1 . . . . . . . . . Parts Field Recycled . | . . . . . . . . . . . . . . . . . . . . . . . . . . . . Retrieved Matter . | . . . . . . . . . . . . . . . . . . . . . . . . . . . . Parts Self-Destructed 48 | . . . . . . . . . . . . . 20 13 . 15 . . . . . . . . . . . Prevented 1 | . . . . . . . . . . . . . 1 . . . . . . . . . . . . . . Parts Restored . | . . . . . . . . . . . . . . . . . . . . . . . . . . . . Kills | -11 -10 -9 -9 -9 -8 -8 -8 -8 -8 -7 -7 -7 -7 -7 -7 -6 -6 -6 -6 -6 -6 -5 -5 -4 -3 -2 -2 ------- Run | Yrd Mat Mat Min Exi Min Mat Gar Mat Gar Fac Gar Fac Low Low Dat Pro Fac Ext Cet Arc Hub Fac Gar Fac Res Res Qua Combat Hostiles Destroyed 270 | . 3 31 . . . 6 42 2 18 11 36 2 10 9 . 21 21 19 2 . 4 . 30 2 . . 1 Melee 5 | . . . . . . . . . . . 2 . . . . 1 2 . . . . . . . . . . Guns 108 | . 3 29 . . . 1 23 1 9 2 3 . . . . . 1 5 2 . 2 . 27 . . . . Cannons 58 | . . . . . . . . . . . 11 2 6 9 . 3 17 9 . . . . . . . . 1 AOE 95 | . . 2 . . . 5 19 1 9 8 20 . 4 . . 16 . 4 . . 2 . 3 2 . . . Classes Destroyed 19 | . 1 4 . . . 1 4 1 1 . . . . . . 1 3 1 . . . . 1 . . . 1 Worker 11 | . . . . . . . . 1 . 1 . . . . . . 8 . . . 1 . . . . . . Builder 5 | . . 1 . . . . . . . 1 . . . . . . . . . . 2 . . 1 . . . Tunneler 1 | . . . . . . . . . . . . . . . . . 1 . . . . . . . . . . Hauler 10 | . . 3 . . . . . . . . . . . 1 . . 2 2 . . . . . 2 . . . Recycler 1 | . . . . . . . . . . . . . . . . . 1 . . . . . . . . . . Mechanic 2 | . . . . . . . . . . . . . . . . . 2 . . . . . . . . . . Operator 3 | . . . . . . . . . . . . . . . . . . 1 . . 1 . . 1 . . . Watcher 2 | . . . . . . . . . 1 . . . . . . . . . 1 . . . . . . . . Swarmer 71 | . 3 14 . . . 3 3 1 3 8 11 . 5 . . 13 6 . . . . . 1 . . . . Cutter 4 | . . . . . . . . . . . . . . . . . . . . . . . 4 . . . . Saboteur 1 | . . . . . . . . . . . . . . . . . . . . . . . . . . . 1 Grunt 92 | . . 12 . . . 2 9 1 6 . 16 . 3 8 . 6 5 7 . . 4 . 13 . . . . Brawler 4 | . . . . . . 1 . . . . 1 2 . . . . . . . . . . . . . . . Duelist 11 | . . . . . . . 2 1 2 . 2 . 1 . . . 1 . . . . . 2 . . . . Sentry 48 | . . 5 . . . . 15 . 3 1 . . 1 . . 1 6 8 . . . . 8 . . . . Specialist 3 | . . . . . . . 2 . . . . . 1 . . . . . . . . . . . . . . Hunter 10 | . . . . . . . 8 . . . . . . 1 . . . 1 . . . . . . . . . Programmer 21 | . . . . . . . 3 . 4 2 6 . . . . . 3 . . . . . 1 2 . . . Behemoth 4 | . . . . . . . . . . . . . . . . 1 . 2 . . . . 1 . . . . Cetus Guard 2 | . . . . . . . . . . . . . . . . . . . 2 . . . . . . . . Enhanced Grunt 1 | . . . . . . . . . . . . . . . . . . . . . 1 . . . . . . Thug 1 | . . . . . . . . . . . . . . . . . . 1 . . . . . . . . . Butcher 2 | . . . . . . . . . . . . . . . . . . 1 . 1 . . . . . . . Best Kill Streak 8 | . 3 6 . . . 5 6 1 5 6 8 1 3 5 . 7 7 4 3 . 6 . 6 2 . . 1 Combat Bots Only 8 | . 3 6 . . . 5 6 1 5 4 8 1 3 5 . 7 3 3 2 . 2 . 6 2 . . 1 Max Kills in Single Turn 6 | . 1 2 . . . 4 2 1 3 2 3 1 2 2 . 3 6 2 1 1 5 . 2 2 . . 1 Gunslinging 1 | . . . . . . . 1 . 1 . . . . . . . . . . . . . . . . . . Exploded 4 | . . 1 . . . 4 2 1 3 2 3 . 2 . . 3 . 2 . . 2 . 2 1 . . . Melee 1 | . . . . . . . . . . . 1 . . . . 1 1 . . . . . . . . . . Uniques/NPCs Destroyed . | . . . . . . . . . . . . . . . . . . . . . . . . . . . . Combat | -11 -10 -9 -9 -9 -8 -8 -8 -8 -8 -7 -7 -7 -7 -7 -7 -6 -6 -6 -6 -6 -6 -5 -5 -4 -3 -2 -2 -------- Run | Yrd Mat Mat Min Exi Min Mat Gar Mat Gar Fac Gar Fac Low Low Dat Pro Fac Ext Cet Arc Hub Fac Gar Fac Res Res Qua Hostile Shots Fired 1894 | . 16 78 . . . 6 174 7 70 47 149 29 76 28 . 108 266 200 21 . 60 . 154 106 2 . 297 Missed 658 | . 7 30 . . . 1 54 3 22 19 55 11 32 5 . 34 87 86 9 . 19 . 37 43 2 . 102 Hits 1236 | . 9 48 . . . 5 120 4 48 28 94 18 44 23 . 74 179 114 12 . 41 . 117 63 . . 195 Melee 16 | . . . . . . . . . . . . . . . . . . . . . . . 13 . . . 3 Projectile 1220 | . 9 48 . . . 5 120 4 48 28 94 18 44 23 . 74 179 114 12 . 41 . 104 63 . . 192 AOE 5 | . . . . . . . 3 . . . 1 . . . . . . . . . . . . . . . 1 Critical Strikes 54 | . . 1 . . . . 4 . 2 4 5 . 3 . . 1 6 3 1 . 1 . 9 3 . . 11 Part Disruptions 2 | . . . . . . . . . 1 . . . . . . . 1 . . . . . . . . . . Damage Taken 20338 | . 77 483 . . . 73 1944 70 745 360 1563 208 552 360 . 1091 2206 1445 271 19 871 . 2826 1218 . . 3956 Core 4129 | . 25 32 . . . 14 223 . 230 85 137 11 71 30 . 107 386 64 . . 138 . 556 562 . . 1458 Absorbed by Shields 565 | . . . . . . . 15 . . . . . . . . . . 306 95 . . . . . . . 149 Reduced by Siege Mode 13 | . . . . . . . . . . . . . . . . . . . . . . . 13 . . . . Redirected to Shielding 215 | . . . . . . . . . . . . . . . . . . . . . . . . . . . 215 Core Remaining (%) 62 | 100 90 . . . 92 . . . 15 . . . . . . 37 . . . . 30 . 44 51 100 . . Volleys Fired 764 | . 4 59 . . . 9 130 19 58 40 71 24 36 31 . 32 71 45 15 2 9 . 78 16 . . 15 Largest 4 | . 2 3 . . . 3 3 3 3 3 2 1 2 1 . 2 4 4 4 2 3 . 4 1 . . 3 Hottest 480 | . 90 135 . . . 91 101 84 84 128 104 65 104 65 . 104 203 211 243 70 240 . 480 46 . . 256 Shots Fired 1449 | . 8 162 . . . 15 269 29 121 51 83 26 37 33 . 31 172 154 31 5 19 . 164 16 . . 23 Gun 853 | . 8 162 . . . 11 228 16 98 23 19 . . . . . 18 73 19 5 19 . 154 . . . . Cannon 371 | . . . . . . . . . . . 31 7 26 33 . 19 154 76 8 . . . . . . . 17 Launcher 124 | . . . . . . 4 30 3 18 7 22 . 3 . . 12 . 5 1 . . . 3 16 . . . Special 101 | . . . . . . . 11 10 5 21 11 19 8 . . . . . 3 . . . 7 . . . 6 Kinetic 887 | . . 61 . . . 10 175 16 98 12 41 7 26 33 . 19 135 112 16 5 11 . 110 . . . . Thermal 93 | . . . . . . . . . . . . . . . . . 30 7 4 . 8 . 44 . . . . Explosive 124 | . . . . . . 4 30 3 18 7 22 . 3 . . 12 . 5 1 . . . 3 16 . . . Electromagnetic 244 | . 8 101 . . . 1 53 . . 11 9 . . . . . 7 30 7 . . . . . . . 17 Robot Hit Streak 26 | . 7 20 . . . 9 26 6 11 14 8 7 4 6 . 7 18 15 8 9 3 . 20 7 . . 8 Robot Miss Streak 15 | . 5 5 . . . 1 4 5 5 3 2 1 4 4 . 2 15 8 2 1 3 . 4 . . . 2 Penetration Max 1 | . . . . . . . 1 1 1 1 . . 1 1 . . . . 1 . 1 . 1 . . . . Secondary Targets 14 | . . 1 . . . . 7 . 2 . . . . . . . . . . . 1 . 3 . . . . Max Gunslinging Chain 1 | . . 1 . . . . 1 . 1 . . . . . . . . . . . 1 . 1 . . . . Shots Hit Robots 862 | . 5 111 . . . 11 156 17 41 33 77 18 15 21 . 20 109 95 23 3 7 . 83 6 . . 11 Core Hits 657 | . 5 68 . . . 10 108 8 38 19 58 2 15 12 . 35 61 108 10 2 15 . 64 16 . . 3 Critical Kills 12 | . . . . . . . 1 . . . . . . . . . 1 . 2 . 1 . 7 . . . . Critical Parts Destroyed 21 | . . . . . . . 2 . 2 . 6 . . . . . . 1 3 . . . 7 . . . . Critical Strikes 53 | . . . . . . . 3 . 2 . 7 1 . 4 . 5 7 3 5 . 1 . 15 . . . . Meltdown 1 | . . . . . . . . . . . . . . . . . 1 . . . . . . . . . . Destroy 27 | . . . . . . . 3 . 2 . . . . . . . . 1 5 . 1 . 15 . . . . Blast 19 | . . . . . . . . . . . 1 1 . 4 . 5 6 2 . . . . . . . . . Smash 6 | . . . . . . . . . . . 6 . . . . . . . . . . . . . . . . Melee Attacks 64 | . . . . . . . . . . . 47 3 . . . 2 12 . . . . . . . . . . Impact 64 | . . . . . . . . . . . 47 3 . . . 2 12 . . . . . . . . . . Slashing . | . . . . . . . . . . . . . . . . . . . . . . . . . . . . Piercing . | . . . . . . . . . . . . . . . . . . . . . . . . . . . . Sneak Attacks 1 | . . . . . . . . . . . . . . . . . 1 . . . . . . . . . . Combat Hostiles . | . . . . . . . . . . . . . . . . . . . . . . . . . . . . Follow-up Attacks . | . . . . . . . . . . . . . . . . . . . . . . . . . . . . Damage Inflicted 36955 | . 65 1727 . . . 998 4327 345 1780 1030 5638 204 1093 1398 . 2609 4608 3572 1004 83 1264 . 3549 1340 . . 321 Guns 11233 | . 65 1650 . . . 155 2380 204 1111 320 181 . . . . . 252 1286 455 83 320 . 2771 . . . . Cannons 9906 | . . . . . . . . . . . 1374 204 569 1398 . 1021 3426 1418 175 . . . . . . . 321 Explosions 13649 | . . 77 . . . 843 1947 141 669 710 2354 . 524 . . 1479 601 868 374 . 944 . 778 1340 . . . Melee 2167 | . . . . . . . . . . . 1729 . . . . 109 329 . . . . . . . . . . Ramming . | . . . . . . . . . . . . . . . . . . . . . . . . . . . . Kinetic 16106 | . . 463 . . . 143 1786 204 1111 210 1465 204 569 1398 . 1021 2972 2056 386 83 198 . 1837 . . . . Thermal 3347 | . . 77 . . . 608 281 . . . . . . . . . 617 238 470 . 122 . 934 . . . . Explosive 11290 | . . . . . . 235 1666 141 669 710 2354 . 524 . . 1479 601 793 . . . . 778 1340 . . . Electromagnetic 4045 | . 65 1187 . . . 12 594 . . 110 90 . . . . . 89 485 148 . 944 . . . . . 321 Impact 2167 | . . . . . . . . . . . 1729 . . . . 109 329 . . . . . . . . . . Slashing . | . . . . . . . . . . . . . . . . . . . . . . . . . . . . Piercing . | . . . . . . . . . . . . . . . . . . . . . . . . . . . . Highest Corruption 20 | . . 2 2 2 2 . 10 10 17 1 9 9 9 9 9 9 3 5 16 16 19 . 2 5 . . 20 Average Corruption 6 | . . 2 2 2 2 . 7 10 15 1 3 9 9 9 9 9 2 2 11 16 16 . 1 3 . . 13 Corruption Purged 4 | . . . . . . . . . . . . . . . . . . 4 . . . . . . . . . Corruption Blocked . | . . . . . . . . . . . . . . . . . . . . . . . . . . . . Effects 397 | . . 4 . 3 1 . 50 10 66 3 55 18 31 21 3 30 17 22 32 9 8 . 8 1 . . 5 Message Errors 93 | . . 2 . . 1 . 12 2 14 1 14 2 6 5 1 6 6 6 10 . 2 . 2 . . . 1 Matter Fused 94 | . . . . 1 . . 11 1 14 1 13 6 9 4 . 12 2 5 6 2 2 . 3 1 . . 1 Heat Flow Errors 42 | . . . . . . . 3 1 8 . 7 2 5 2 1 1 2 2 4 3 . . 1 . . . . Energy Discharges 53 | . . . . . . . 8 1 6 . 9 3 5 1 1 4 4 5 3 1 . . 2 . . . . Parts Rejected 4 | . . . . . . . 2 . 1 . . . . . . . . . . 1 . . . . . . . Parts Fused 5 | . . . . . . . . 1 . 1 . . . 1 . 1 . . . . 1 . . . . . . Data Loss (minor) 40 | . . 2 . 1 . . 3 1 8 . 5 1 2 6 . 2 2 1 2 1 1 . . . . . 2 Data Loss (major) 22 | . . . . 1 . . 5 2 6 . 3 . 1 . . 1 1 . 1 . . . . . . . 1 Misfires 18 | . . . . . . . 4 . 2 . 1 2 1 2 . . . 1 3 1 1 . . . . . . Alerts 9 | . . . . . . . . 1 1 . 3 2 1 . . 1 . . . . . . . . . . . Misdirections 3 | . . . . . . . . . . . . . . . . . . . 2 . 1 . . . . . . Weapon Failures 14 | . . . . . . . 2 . 6 . . . 1 . . 2 . 2 1 . . . . . . . . Overload Shots 14 | . . . . . . . . . . . . . . . . . . . 1 . 4 . 9 . . . . Effects 1 | . . . . . . . . . . . . . . . . . . . . . . . 1 . . . . Short Circuit 1 | . . . . . . . . . . . . . . . . . . . . . . . 1 . . . . Overflow Damage 1755 | . . . . . . 39 31 . 18 19 917 . 66 37 . 306 181 10 35 . 19 . 48 23 . . 6 Projectiles 658 | . . . . . . . . . . . 299 . 49 37 . 211 56 . . . . . . . . . 6 Explosions 507 | . . . . . . 39 31 . 18 19 159 . 17 . . 12 77 10 35 . 19 . 48 23 . . . Melee 590 | . . . . . . . . . . . 459 . . . . 83 48 . . . . . . . . . . Knockbacks 45 | . . . . . . . . . . . 12 . . 6 . 2 21 4 . . . . . . . . . Impact 5 | . . . . . . . . . . . 3 . . . . . 2 . . . . . . . . . . Kinetic 34 | . . . . . . . . . . . 7 . . 6 . 1 16 4 . . . . . . . . . Secondary 6 | . . . . . . . . . . . 2 . . . . 1 3 . . . . . . . . . . Self-Inflicted Damage 682 | . . . . . . . 75 . 13 . 153 . 9 . . 38 64 66 . . 106 . 39 119 . . . Shots 20 | . . . . . . . 3 . 1 . 5 . 1 . . 1 1 1 . . 1 . 1 5 . . . Rammed 1 | . . . . . . . . . . . . . . . . . . . . . 1 . . . . . . Targets Rammed 1 | . . . . . . . . . . . . . . . . . . . . . 1 . . . . . . Kicked . | . . . . . . . . . . . . . . . . . . . . . . . . . . . . Crushed . | . . . . . . . . . . . . . . . . . . . . . . . . . . . . Highest Temperature 660 | . 120 307 . . . 39 271 97 226 249 246 232 260 230 248 244 335 268 258 202 511 . 660 54 . . 324 Average Temperature 76 | . 63 92 . . . 13 65 20 56 107 44 62 49 62 127 39 73 68 115 81 178 . 138 4 . . 98 Received Heat Transfer 3604 | . . 156 . . . 27 273 27 189 18 378 36 138 162 . 171 513 371 9 . 78 . 402 181 . . 475 Effects 20 | . . 4 . . . . 1 . . . . . . . 1 . . . . . 3 . 10 . . . 1 Shutdowns 3 | . . . . . . . . . . . . . . . . . . . . . 1 . 2 . . . . Energy Bleed 6 | . . 1 . . . . . . . . . . . . 1 . . . . . 1 . 2 . . . 1 Interference 4 | . . 3 . . . . 1 . . . . . . . . . . . . . . . . . . . . Damage (major) 4 | . . . . . . . . . . . . . . . . . . . . . . . 4 . . . . Damage (core) 3 | . . . . . . . . . . . . . . . . . . . . . 1 . 2 . . . . Siege Activations 1 | . . . . . . . . . . . . . . . . . . . . . . . 1 . . . . Total Turns 8 | . . . . . . . . . . . . . . . . . . . . . . . 8 . . . . Longest Duration 8 | . . . . . . . . . . . . . . . . . . . . . . . 8 . . . . Martial Activations . | . . . . . . . . . . . . . . . . . . . . . . . . . . . . Shielding Activations . | . . . . . . . . . . . . . . . . . . . . . . . . . . . . Robots Disrupted . | . . . . . . . . . . . . . . . . . . . . . . . . . . . . Combat Hostiles . | . . . . . . . . . . . . . . . . . . . . . . . . . . . . Robots Corrupted 8 | . . . . . . . . . . 1 3 . . . . 1 1 1 . . 1 . . . . . . Combat Hostiles 3 | . . . . . . . . . . 1 . . . . . 1 . 1 . . . . . . . . . Parts Fried 29 | . . 6 . . . . . . . 1 7 . . . . . . 5 . . 10 . . . . . . Impact Corruptions 17 | . . . . . . . . . . . 13 . . . . 2 2 . . . . . . . . . . Robots Melted 1 | . . . . . . . . . . . . . . . . . 1 . . . . . . . . . . Combat Hostiles 1 | . . . . . . . . . . . . . . . . . 1 . . . . . . . . . . Parts Melted 4 | . . . . . . . . . . . . . . . . . 4 . . . . . . . . . . Heat Transferred 3519 | . . 100 . . . 350 400 . . . . . . . . . 950 275 343 . 111 . 990 . . . . Parts Sabotaged 1 | . . . . . . . . . . . . . . . . . . . . . . . . . . . 1 Parts Stolen . | . . . . . . . . . . . . . . . . . . . . . . . . . . . . Parts Stripped . | . . . . . . . . . . . . . . . . . . . . . . . . . . . . Power Chain Reactions 9 | . . 2 . . . 1 3 . . . . . . . . . . . 1 . 2 . . . . . . Alert | -11 -10 -9 -9 -9 -8 -8 -8 -8 -8 -7 -7 -7 -7 -7 -7 -6 -6 -6 -6 -6 -6 -5 -5 -4 -3 -2 -2 ------- Run | Yrd Mat Mat Min Exi Min Mat Gar Mat Gar Fac Gar Fac Low Low Dat Pro Fac Ext Cet Arc Hub Fac Gar Fac Res Res Qua Maximum Alert Level 5 | . . 2 . . . 1 5 4 5 3 5 5 . . . . 2 4 3 1 3 2 3 3 1 . 5 Low Security (%) 12 | 100 100 23 100 . 100 36 9 . . . . . . . . . 54 . . 9 56 . . . . 100 . Level 1 14 | . . 37 . . . 63 9 . . . . . . . . . 28 42 . 90 26 . 15 . 100 . . Level 2 17 | . . 39 . . . . 13 . . . 3 . . . . . 16 33 75 . . 100 25 76 . . . Level 3 22 | . . . . . . . 35 97 12 100 12 . . . . . . 20 24 . 16 . 58 23 . . . Level 4 10 | . . . . . . . 21 2 27 . 21 38 . . . . . 3 . . . . . . . . . Level 5 19 | . . . . . . . 10 . 60 . 63 15 . . . . . . . . . . . . . . . High Security 1 | . . . . . . . . . . . . 45 . . . . . . . . . . . . . . . Max Security 2 | . . . . . . . . . . . . . . . . . . . . . . . . . . . 99 Peak Influence 3189 | . 75 503 180 . . 295 1772 1130 1990 1045 3189 1774 . . . . 587 1188 754 269 1030 435 1019 815 399 184 2497 Initial 1673 | . . 22 180 . . . 172 863 734 1044 679 1673 . . . . 66 282 660 266 69 435 297 534 384 184 75 Average 954 | . 11 312 178 . . 192 883 970 1620 962 1802 1646 . . . . 223 514 631 232 303 430 710 600 364 159 1896 Influence Increases 16565 | . 85 887 . . . 315 1780 437 1496 388 2710 463 228 225 . 460 1175 1660 549 163 1100 . 842 480 15 . 1107 Destroy 0b10 Robot/C 7040 | . 60 620 . . . 180 920 160 600 240 860 140 200 180 . 420 480 700 220 80 220 . 600 40 . . 120 Destroy 0b10 Robot/NC 260 | . . 20 . . . . 20 5 5 10 25 10 . 10 . 10 70 30 10 . 20 . . 15 . . . Destroy Leader 852 | . 10 146 . . . 40 20 50 30 60 50 34 20 20 . 30 124 84 10 . 60 . 40 14 . . 10 Allied During Kill 2117 | . . . . . . 35 222 185 247 17 41 66 8 . . . . 706 240 80 238 . . . . . 32 Successful Hack 101 | . . . . . . . 14 . 12 21 . . . . . . . 7 3 . . . 14 30 . . . Select Force Hacks 30 | . . 30 . . . . . . . . . . . . . . . . . . . . . . . . . Disable Machine 1005 | . . 45 . . . 45 . 15 45 . 15 30 . . . . 225 45 30 . 330 . . 135 . . 45 Anti-Garrison Action 2400 | . . . . . . . 450 . 350 . 1400 150 . . . . . . . . . . 50 . . . . Destroy Structure 1365 | . . 11 . . . 15 119 22 207 40 214 33 . . . . 96 58 36 3 217 . 78 216 . . . Partial Spotted 45 | . . . . . . . 15 . . . . . . . . . . . . . . . . 15 15 . . Lose Combat Pursuer 1350 | . 15 15 . . . . . . . . 105 . . 15 . . 180 30 . . 15 . 60 15 . . 900 Influence Decreases 15603 | . 30 480 292 170 . 50 273 1079 636 1408 491 1836 1111 550 608 354 705 1056 1064 629 410 464 248 765 420 195 279 Entered New Map 9099 | . . 33 282 170 . . 93 909 396 946 291 1516 673 178 608 . 40 294 520 399 130 454 128 485 350 145 59 Time Decay 4264 | . 30 407 10 . . 50 . 130 . 422 . 160 398 362 . 304 545 542 404 90 90 10 . 190 70 50 . Lost Part 980 | . . 40 . . . . 100 . 50 20 90 . 20 10 . 50 80 60 40 . 10 . 120 90 . . 200 Lost Ally 1260 | . . . . . . . 80 40 190 20 110 160 20 . . . 40 160 100 140 180 . . . . . 20 Squads Dispatched 56 | . 1 3 . . . 1 . 1 . 3 . 11 . . . . 5 3 . . 3 . . 4 . 1 20 Investigation 6 | . 1 2 . . . 1 . . . 1 . . . . . . . 1 . . . . . . . . . Extermination 7 | . . . . . . . . . . 2 . . . . . . 3 . . . . . . 2 . . . Reinforcement 12 | . . 1 . . . . . 1 . . . . . . . . 2 2 . . 3 . . 2 . 1 . Assault 30 | . . . . . . . . . . . . 10 . . . . . . . . . . . . . . 20 Garrison 1 | . . . . . . . . . . . . 1 . . . . . . . . . . . . . . . Intercept . | . . . . . . . . . . . . . . . . . . . . . . . . . . . . Searches Triggered . | . . . . . . . . . . . . . . . . . . . . . . . . . . . . Construction Impeded 3 | . . . . . . . . . . . . . . . . . . 2 . . . . . 1 . . . Haulers Reinforced 2 | . . . . . . . . . . . . . . . . . 1 . . . 1 . . . . . . Active Scanning Responses . | . . . . . . . . . . . . . . . . . . . . . . . . . . . . Cargo Convoy Interrupts . | . . . . . . . . . . . . . . . . . . . . . . . . . . . . Stealth | -11 -10 -9 -9 -9 -8 -8 -8 -8 -8 -7 -7 -7 -7 -7 -7 -6 -6 -6 -6 -6 -6 -5 -5 -4 -3 -2 -2 --------- Run | Yrd Mat Mat Min Exi Min Mat Gar Mat Gar Fac Gar Fac Low Low Dat Pro Fac Ext Cet Arc Hub Fac Gar Fac Res Res Qua Distress Signals 22 | . . 6 . . . . . 2 1 . . . . . . . 3 2 2 . 1 . . 2 . . 3 Communications Jammed . | . . . . . . . . . . . . . . . . . . . . . . . . . . . . Distress Signals . | . . . . . . . . . . . . . . . . . . . . . . . . . . . . Times Spotted 512 | . 3 48 . . . 7 48 10 31 12 44 21 12 10 . 19 36 37 12 3 12 . 32 24 5 1 85 Peak Tracking Total 35 | . 2 5 . . . 5 5 2 4 4 4 5 4 5 . 5 7 5 5 2 6 . 11 20 4 1 35 Tactical Retreats 34 | . 1 1 . . . . . . . . 5 . . 1 . . 7 2 . . 1 . 4 1 . . 11 Traps | -11 -10 -9 -9 -9 -8 -8 -8 -8 -8 -7 -7 -7 -7 -7 -7 -6 -6 -6 -6 -6 -6 -5 -5 -4 -3 -2 -2 ------- Run | Yrd Mat Mat Min Exi Min Mat Gar Mat Gar Fac Gar Fac Low Low Dat Pro Fac Ext Cet Arc Hub Fac Gar Fac Res Res Qua Traps Triggered 14 | . 2 1 . . . . 4 . . 1 3 . . . . . . 1 . . . . 1 1 . . . Indirectly . | . . . . . . . . . . . . . . . . . . . . . . . . . . . . Trap Hack Attempts . | . . . . . . . . . . . . . . . . . . . . . . . . . . . . Triggered . | . . . . . . . . . . . . . . . . . . . . . . . . . . . . Disarmed . | . . . . . . . . . . . . . . . . . . . . . . . . . . . . Reprogrammed . | . . . . . . . . . . . . . . . . . . . . . . . . . . . . Reused . | . . . . . . . . . . . . . . . . . . . . . . . . . . . . Traps Extracted . | . . . . . . . . . . . . . . . . . . . . . . . . . . . . Installed . | . . . . . . . . . . . . . . . . . . . . . . . . . . . . Triggered . | . . . . . . . . . . . . . . . . . . . . . . . . . . . . Most Traps Carried 1 | . . . . . . . . . . . . . 1 1 . . . . . . . . . . . . . Machines | -11 -10 -9 -9 -9 -8 -8 -8 -8 -8 -7 -7 -7 -7 -7 -7 -6 -6 -6 -6 -6 -6 -5 -5 -4 -3 -2 -2 ---------- Run | Yrd Mat Mat Min Exi Min Mat Gar Mat Gar Fac Gar Fac Low Low Dat Pro Fac Ext Cet Arc Hub Fac Gar Fac Res Res Qua Machines Disabled 91 | . . 3 . . . 3 7 1 9 . 6 3 . . . 4 15 3 2 . 22 . 1 9 . . 3 Max in Single Turn 14 | . . 1 . . . 2 2 1 1 . 1 1 . . . 2 4 1 1 . 14 . 1 2 . . 1 Garrison Access 3 | . . . . . . . . . . . . 1 . . . . 1 . . . . . . 1 . . . Garrison Relay 16 | . . . . . . . 6 . 4 . 5 . . . . . . . . . . . 1 . . . . Phase Generator 2 | . . . . . . . 1 . 1 . . . . . . . . . . . . . . . . . . Network Hub 2 | . . . . . . . . . . . . . . . . . . . . . 2 . . . . . . Energy Cycler 1 | . . . . . . . . . . . . . . . . . . 1 . . . . . . . . . Machines Repaired . | . . . . . . . . . . . . . . . . . . . . . . . . . . . . Machines Dismantled . | . . . . . . . . . . . . . . . . . . . . . . . . . . . . Machines Sabotaged . | . . . . . . . . . . . . . . . . . . . . . . . . . . . . Overloaded Fab Kills . | . . . . . . . . . . . . . . . . . . . . . . . . . . . . Hacking | -11 -10 -9 -9 -9 -8 -8 -8 -8 -8 -7 -7 -7 -7 -7 -7 -6 -6 -6 -6 -6 -6 -5 -5 -4 -3 -2 -2 --------- Run | Yrd Mat Mat Min Exi Min Mat Gar Mat Gar Fac Gar Fac Low Low Dat Pro Fac Ext Cet Arc Hub Fac Gar Fac Res Res Qua Machines Accessed 34 | . . 2 . 1 . 2 3 1 1 2 3 . 1 . 4 . 4 1 3 1 . 1 2 2 . . . Terminals 16 | . . 1 . . . 1 3 . 1 . 3 . . . . . . 1 3 . . . 2 1 . . . Fabricators 3 | . . . . . . . . . . . . . . . . . 3 . . . . . . . . . . Repair Stations . | . . . . . . . . . . . . . . . . . . . . . . . . . . . . Recycling Units 1 | . . . . . . . . . . 1 . . . . . . . . . . . . . . . . . Scanalyzers 1 | . . 1 . . . . . . . . . . . . . . . . . . . . . . . . . Garrison Access 6 | . . . . . . 1 . 1 . 1 . . . . . . 1 . . . . 1 . 1 . . . Total Hacks 93 | . . 2 . 1 . 2 6 1 1 3 6 . 1 . 29 . 7 1 11 11 . 1 6 4 . . . Successful 69 | . . 2 . 1 . 2 1 1 1 2 2 . 1 . 29 . 7 1 2 11 . 1 2 3 . . . Failed 24 | . . . . . . . 5 . . 1 4 . . . . . . . 9 . . . 4 1 . . . Catastrophic 9 | . . . . . . . 2 . . . 1 . . . . . . . 3 . . . 3 . . . . Database Lockouts . | . . . . . . . . . . . . . . . . . . . . . . . . . . . . Manual 12 | . . 2 . 1 . 1 . . . 3 . . . . . . . . 2 . . . . 3 . . . Terminals 36 | . . 1 . . . 1 6 . 1 . 6 . . . . . . 1 11 . . . 6 3 . . . Fabricators 6 | . . . . . . . . . . . . . . . . . 6 . . . . . . . . . . Repair Stations . | . . . . . . . . . . . . . . . . . . . . . . . . . . . . Recycling Units 2 | . . . . . . . . . . 2 . . . . . . . . . . . . . . . . . Scanalyzers 1 | . . 1 . . . . . . . . . . . . . . . . . . . . . . . . . Garrison Access 6 | . . . . . . 1 . 1 . 1 . . . . . . 1 . . . . 1 . 1 . . . Terminal Hacks 51 | . . . . 1 . . 1 . 1 . 2 . 1 . 29 . . 1 2 11 . . 2 . . . . Record 23 | . . . . . . . . . . . . . . . 10 . . . 2 11 . . . . . . . Part Schematic 11 | . . . . . . . . . . . . . . . 11 . . . . . . . . . . . . Robot Schematic 5 | . . . . . . . . . . . . . . . 5 . . . . . . . . . . . . Prototype ID Bank 3 | . . . . . . . . . . . . . . . 3 . . . . . . . . . . . . Open Door 3 | . . . . . . . . . . . 1 . 1 . . . . 1 . . . . . . . . . Emergency Access Points 1 | . . . . . . . . . . . . . . . . . . . . . . . 1 . . . . Garrison Registry 3 | . . . . . . . . . 1 . 1 . . . . . . . . . . . 1 . . . . Patrol Navigation 1 | . . . . . . . 1 . . . . . . . . . . . . . . . . . . . . Proto ID Catalog 1 | . . . . 1 . . . . . . . . . . . . . . . . . . . . . . . Fabricator Hacks 6 | . . . . . . . . . . . . . . . . . 6 . . . . . . . . . . Load Schematic 3 | . . . . . . . . . . . . . . . . . 3 . . . . . . . . . . Build 3 | . . . . . . . . . . . . . . . . . 3 . . . . . . . . . . Repair Station Hacks . | . . . . . . . . . . . . . . . . . . . . . . . . . . . . Recycling Unit Hacks . | . . . . . . . . . . . . . . . . . . . . . . . . . . . . Scanalyzer . | . . . . . . . . . . . . . . . . . . . . . . . . . . . . Garrison Access Hacks 6 | . . . . . . 1 . 1 . 1 . . . . . . 1 . . . . 1 . 1 . . . Unlock Access 4 | . . . . . . 1 . 1 . 1 . . . . . . . . . . . 1 . . . . . Seal Access 2 | . . . . . . . . . . . . . . . . . 1 . . . . . . 1 . . . Unauthorized Hacks 6 | . . 2 . . . 1 . . . 1 . . . . . . . . . . . . . 2 . . . Terminals 4 | . . 1 . . . 1 . . . . . . . . . . . . . . . . . 2 . . . Assimilate 1 | . . . . . . . . . . . . . . . . . . . . . . . . 1 . . . Botnet 1 | . . . . . . . . . . . . . . . . . . . . . . . . 1 . . . Search 2 | . . 1 . . . 1 . . . . . . . . . . . . . . . . . . . . . Fabricators . | . . . . . . . . . . . . . . . . . . . . . . . . . . . . Repair Stations . | . . . . . . . . . . . . . . . . . . . . . . . . . . . . Recycling Units 1 | . . . . . . . . . . 1 . . . . . . . . . . . . . . . . . Reject 1 | . . . . . . . . . . 1 . . . . . . . . . . . . . . . . . Scanalyzers 1 | . . 1 . . . . . . . . . . . . . . . . . . . . . . . . . Extract 1 | . . 1 . . . . . . . . . . . . . . . . . . . . . . . . . Garrison Access . | . . . . . . . . . . . . . . . . . . . . . . . . . . . . Data Cores Recovered . | . . . . . . . . . . . . . . . . . . . . . . . . . . . . Used . | . . . . . . . . . . . . . . . . . . . . . . . . . . . . Hacking Detections 12 | . . . . . . . 3 . . 1 2 . . . . . . 1 3 . . . 2 . . . . Full Trace Events 2 | . . . . . . . 1 . . . 1 . . . . . . . . . . . . . . . . Feedback Events . | . . . . . . . . . . . . . . . . . . . . . . . . . . . . Feedback Blocked . | . . . . . . . . . . . . . . . . . . . . . . . . . . . . Robot Schematics Acquired 5 | . . . . . . . . . . . . . . . 5 . . . . . . . . . . . . Robots Built 2 | . . . . . . . . . . . . . . . . . 2 . . . . . . . . . . Authchips 1 | . . . . . . . . . . . . . . . . . 1 . . . . . . . . . . Time 152 | . . . . . . . . . . . . . . . . . 152 . . . . . . . . . . Total Robot Build Rating 10 | . . . . . . . . . . . . . . . . . 10 . . . . . . . . . . Part Schematics Acquired 19 | . . 8 . . . . . . . . . . . . 11 . . . . . . . . . . . . Parts Built 3 | . . . . . . . . . . . . . . . . . 3 . . . . . . . . . . Authchips 2 | . . . . . . . . . . . . . . . . . 2 . . . . . . . . . . Time 156 | . . . . . . . . . . . . . . . . . 156 . . . . . . . . . . Total Part Build Rating 17 | . . . . . . . . . . . . . . . . . 17 . . . . . . . . . . Part Studies Acquired . | . . . . . . . . . . . . . . . . . . . . . . . . . . . . Parts Repaired . | . . . . . . . . . . . . . . . . . . . . . . . . . . . . Time . | . . . . . . . . . . . . . . . . . . . . . . . . . . . . Parts Recycled . | . . . . . . . . . . . . . . . . . . . . . . . . . . . . Recycled Matter . | . . . . . . . . . . . . . . . . . . . . . . . . . . . . Retrieved Matter . | . . . . . . . . . . . . . . . . . . . . . . . . . . . . Retrieved Components . | . . . . . . . . . . . . . . . . . . . . . . . . . . . . Parts Scanalyzed . | . . . . . . . . . . . . . . . . . . . . . . . . . . . . Part Schematics Acquired . | . . . . . . . . . . . . . . . . . . . . . . . . . . . . Parts Damaged . | . . . . . . . . . . . . . . . . . . . . . . . . . . . . Bothacking | -11 -10 -9 -9 -9 -8 -8 -8 -8 -8 -7 -7 -7 -7 -7 -7 -6 -6 -6 -6 -6 -6 -5 -5 -4 -3 -2 -2 ------------ Run | Yrd Mat Mat Min Exi Min Mat Gar Mat Gar Fac Gar Fac Low Low Dat Pro Fac Ext Cet Arc Hub Fac Gar Fac Res Res Qua Used RIF Installer 5 | . . . . . . . 1 . 2 . 1 . . . . . . . . . . . 1 . . . . Command Fork 2 | . . . . . . . . . 2 . . . . . . . . . . . . . . . . . . Patrol Navigation 1 | . . . . . . . . . . . 1 . . . . . . . . . . . . . . . . Autooverride 1 | . . . . . . . . . . . . . . . . . . . . . . . 1 . . . . Robots Hacked 43 | . . . . . . . 4 5 3 5 4 11 4 . . . . . 2 . . . 2 . . . 3 Non-combat 11 | . . . . . . . . 4 . 5 . 2 . . . . . . . . . . . . . . . Combat 32 | . . . . . . . 4 1 3 . 4 9 4 . . . . . 2 . . . 2 . . . 3 Robot Hacks Applied 55 | . . . . . . . 4 5 3 9 4 17 4 . . . . . 2 . . . 3 . . . 4 parse_system 11 | . . . . . . . . . 1 . 1 4 . . . . . . 2 . . . 2 . . . 1 generate_echo 1 | . . . . . . . . . . 1 . . . . . . . . . . . . . . . . . start_evac 1 | . . . . . . . . . . . . 1 . . . . . . . . . . . . . . . find_chute 1 | . . . . . . . . . . 1 . . . . . . . . . . . . . . . . . ignore_repairs 1 | . . . . . . . . . . 1 . . . . . . . . . . . . . . . . . drop_inventory 1 | . . . . . . . . . . 1 . . . . . . . . . . . . . . . . . find_recycling 1 | . . . . . . . . . . 1 . . . . . . . . . . . . . . . . . ignore_parts 2 | . . . . . . . . . . 2 . . . . . . . . . . . . . . . . . find_garrison 1 | . . . . . . . . . . . . 1 . . . . . . . . . . . . . . . link_fov 2 | . . . . . . . . . . . . 2 . . . . . . . . . . . . . . . mark_system 1 | . . . . . . . . . . . . 1 . . . . . . . . . . . . . . . link_complan 1 | . . . . . . . . . . . . . 1 . . . . . . . . . . . . . . disrupt_area 1 | . . . . . . . . . . . . . . . . . . . . . . . . . . . 1 spike_heat 1 | . . . . . . . . . . . . . . . . . . . . . . . . . . . 1 amplify_resonance 5 | . . . . . . . . . 1 1 . . 2 . . . . . . . . . 1 . . . . disable_weapons 1 | . . . . . . . . . . . . . 1 . . . . . . . . . . . . . . streamctrl_low 1 | . . . . . . . . . . . . 1 . . . . . . . . . . . . . . . formatsys_low 5 | . . . . . . . . 4 . 1 . . . . . . . . . . . . . . . . . formatsys_high 17 | . . . . . . . 4 1 1 . 3 7 . . . . . . . . . . . . . . 1 Relay Couplers Released 75 | . . . . . . . 28 . 16 . 24 2 . . . . . . . . . . 4 1 . . . Machine Destruction 68 | . . . . . . . 24 . 16 . 21 2 . . . . . . . . . . 4 1 . . . Programmers 7 | . . . . . . . 4 . . . 3 . . . . . . . . . . . . . . . . Attached 19 | . . . . . . . 3 2 2 1 6 2 . . . . . . . . . . 2 . . . 1 Fabnet Peak Effective % . | . . . . . . . . . . . . . . . . . . . . . . . . . . . . Robots Rewired 41 | . . . . . . . 9 . . 1 7 . . . . . . 24 . . . . . . . . . Allies Hacked 2 | . . . . . . . . . 1 . 1 . . . . . . . . . . . . . . . . Hacks Repelled . | . . . . . . . . . . . . . . . . . . . . . . . . . . . . Allies | -11 -10 -9 -9 -9 -8 -8 -8 -8 -8 -7 -7 -7 -7 -7 -7 -6 -6 -6 -6 -6 -6 -5 -5 -4 -3 -2 -2 -------- Run | Yrd Mat Mat Min Exi Min Mat Gar Mat Gar Fac Gar Fac Low Low Dat Pro Fac Ext Cet Arc Hub Fac Gar Fac Res Res Qua Total Allies 87 | . . . 3 . . . 15 5 1 2 11 10 . . . . 2 31 5 . . . . 1 . . 1 Largest Group 22 | . . . 3 3 3 3 15 16 16 4 5 7 3 . . . 2 22 22 18 9 . . 1 . . 1 Highest-Rated Group 1055 | . . . 40 40 40 40 337 313 313 80 128 184 66 . . . 82 720 1055 923 567 . . 26 . . 152 Highest-Rated Ally 159 | . . . 16 16 16 16 40 40 40 30 32 32 32 . . . 41 159 159 150 96 . . 26 . . 152 Total Orders 15 | . . . . . . . . . 14 . 1 . . . . . . . . . . . . . . . . STAY 6 | . . . . . . . . . 5 . 1 . . . . . . . . . . . . . . . . FOLLOW 4 | . . . . . . . . . 4 . . . . . . . . . . . . . . . . . . DROP 2 | . . . . . . . . . 2 . . . . . . . . . . . . . . . . . . PICKUP 3 | . . . . . . . . . 3 . . . . . . . . . . . . . . . . . . Ally Attacks 512 | . . . . . . 18 33 35 73 1 38 49 4 . . . 11 118 61 26 33 . . . . . 12 Total Damage 12248 | . . . . . . 152 460 720 1300 42 1263 1367 30 . . . 336 2534 1139 786 1116 . . . . . 1003 Kills 95 | . . . . . . 3 4 6 13 1 7 10 . . . . 3 21 11 4 7 . . . . . 5 Allies Corrupted 8 | . . . . . . . . . 2 . . . . . . . . . . . 6 . . . . . . Allies Melted 1 | . . . . . . . . . . . . . . . . . . . . . . . . . . . 1 Intel | -11 -10 -9 -9 -9 -8 -8 -8 -8 -8 -7 -7 -7 -7 -7 -7 -6 -6 -6 -6 -6 -6 -5 -5 -4 -3 -2 -2 ------- Run | Yrd Mat Mat Min Exi Min Mat Gar Mat Gar Fac Gar Fac Low Low Dat Pro Fac Ext Cet Arc Hub Fac Gar Fac Res Res Qua Active Infowar (turns) 2236 | . . . . . . . . . . . 36 . 55 225 147 690 1083 . . . . . . . . . . Terrain 528 | . . . . . . . . . . . . . . 209 147 172 . . . . . . . . . . . Cloaking 111 | . . . . . . . . . . . 36 . 55 16 . 4 . . . . . . . . . . . Jamming 1597 | . . . . . . . . . . . . . . . . 514 1083 . . . . . . . . . . Robot Analysis Total . | . . . . . . . . . . . . . . . . . . . . . . . . . . . . Derelict Logs Recovered 4 | . . . . . . . . . . . . . 2 1 . 1 . . . . . . . . . . . Drone Launches . | . . . . . . . . . . . . . . . . . . . . . . . . . . . . Drone Recoveries . | . . . . . . . . . . . . . . . . . . . . . . . . . . . . Exploration | -11 -10 -9 -9 -9 -8 -8 -8 -8 -8 -7 -7 -7 -7 -7 -7 -6 -6 -6 -6 -6 -6 -5 -5 -4 -3 -2 -2 ------------- Run | Yrd Mat Mat Min Exi Min Mat Gar Mat Gar Fac Gar Fac Low Low Dat Pro Fac Ext Cet Arc Hub Fac Gar Fac Res Res Qua Turns Passed 20380 | 68 238 1144 23 262 33 123 1767 274 1522 1025 3320 606 958 823 147 951 2009 1548 964 181 182 37 1147 391 151 114 372 Spaces Moved 12567 | 64 212 639 20 220 21 76 1452 212 1304 802 1461 314 514 418 83 411 897 708 492 104 93 23 494 773 216 144 400 Core 302 | 1 . . . . . . . . 2 . . . . . . . 215 . . . . . 1 15 7 1 60 Treads 3607 | . . . . . . . . . . . 479 314 514 418 83 411 158 92 492 104 93 23 426 . . . . Legs 1603 | . . . . . . . . . . . 640 . . . . . 330 616 . . . . . . 4 . 13 Wheels 1239 | 63 212 639 20 220 21 . . . . . . . . . . . 64 . . . . . . . . . . Hover 4783 | . . . . . . 76 1452 212 1302 802 342 . . . . . 10 . . . . . . . 205 143 239 Flight 1033 | . . . . . . . . . . . . . . . . . 120 . . . . . 67 758 . . 88 Fastest Speed 21 | 50 90 90 115 115 115 102 52 74 74 66 58 160 160 160 160 160 40 120 160 160 160 160 61 21 50 66 45 Average Speed 120 | 89 97 106 115 115 115 102 70 74 74 92 192 160 160 160 160 197 152 142 163 160 160 160 152 41 65 70 67 Slowest Speed 750 | 90 105 125 115 115 115 102 129 74 500 147 470 160 160 160 160 320 550 240 240 160 160 160 350 300 110 750 190 Overloaded Moves . | . . . . . . . . . . . . . . . . . . . . . . . . . . . . Propulsion Burnouts . | . . . . . . . . . . . . . . . . . . . . . . . . . . . . Robots Hopped 4 | . . . . . . . . . . . . . . . . . . . . . . . . 4 . . . Potential Cave-ins 4 | . . . . . . . . . . . . . 2 . . . 2 . . . . . . . . . . Cave-ins Triggered . | . . . . . . . . . . . . . . . . . . . . . . . . . . . . Exploration Rate (%) 42 | 4 30 53 3 60 16 15 93 25 76 16 85 11 55 61 69 64 28 79 93 89 17 2 60 26 3 6 55 Regions Visited 27 Branch Regions 12 Pre-discovered Areas 1 | . . . . . . . . . . . . . . . 1 . . . . . . . . . . . . Known Exits Taken 12 | . . . . . . 1 . 1 . 1 . . . . . . 1 1 1 1 1 1 . 1 1 1 . Unknown Exits Taken 11 | 1 1 1 1 1 1 . . . . . . 1 1 1 1 1 . . . . . . . . . . . Scrap Searched 7 | . . . . . . . . . . . . . 2 2 . 3 . . . . . . . . . . . Spaces Dug 55 | . . . . . . . 9 . . . 4 4 1 . . 13 12 5 . . 3 . 4 . . . . Terrain Destroyed 1578 | . . 8 . . . 13 176 27 162 53 230 32 63 18 . 103 104 60 41 2 324 . 27 135 . . . Melee 8 | . . . . . . . . . . . 1 3 . . . . 4 . . . . . . . . . . Projectile 150 | . . . . . . . 3 . 2 . 16 3 21 18 . 6 40 17 2 2 5 . 15 . . . . AOE 1420 | . . 8 . . . 13 173 27 160 53 213 26 42 . . 97 60 43 39 . 319 . 12 135 . . . Terrain Rammed . | . . . . . . . . . . . . . . . . . . . . . . . . . . . . Walls Destroyed . | . . . . . . . . . . . . . . . . . . . . . . . . . . . . Machines Disabled . | . . . . . . . . . . . . . . . . . . . . . . . . . . . . Actions | -11 -10 -9 -9 -9 -8 -8 -8 -8 -8 -7 -7 -7 -7 -7 -7 -6 -6 -6 -6 -6 -6 -5 -5 -4 -3 -2 -2 --------- Run | Yrd Mat Mat Min Exi Min Mat Gar Mat Gar Fac Gar Fac Low Low Dat Pro Fac Ext Cet Arc Hub Fac Gar Fac Res Res Qua Total 16458 | 71 232 983 20 229 30 105 1962 306 1745 1053 1789 395 600 525 97 500 1376 1139 630 114 110 23 741 826 222 153 482 Wait 1955 | 1 5 240 1 8 10 14 159 66 348 150 73 45 31 61 13 42 315 64 98 8 7 . 131 18 . 3 44 Move 12533 | 63 211 638 19 219 20 76 1451 211 1303 801 1460 313 513 417 82 410 896 707 491 103 93 23 493 764 215 143 398 Hop 4 | . . . . . . . . . . . . . . . . . . . . . . . . 4 . . . Pick Up 113 | 1 7 13 . 1 . . 14 2 9 15 14 . 2 3 . 2 7 8 4 . . . 5 1 2 1 2 Fast Attach 108 | 6 1 1 . . . . 10 . 2 5 9 . . 1 1 3 27 5 3 1 1 . 12 5 5 4 6 Attach 54 | . 1 4 . . . 3 1 1 4 2 3 1 1 2 . 3 14 1 2 . . . 4 4 . 1 2 Detach 15 | . . . . . . . . . . 1 2 . . . . . 7 1 . . . . . 4 . . . Swap 200 | . 3 13 . . . 3 40 5 13 11 31 5 6 6 . 4 11 22 11 . . . 13 2 . 1 . Drop 126 | . . 15 . 1 . . 20 . 7 14 17 2 . 4 1 . 16 10 6 . . . 5 8 . . . Fire 764 | . 4 59 . . . 9 130 19 58 40 71 24 36 31 . 32 71 45 15 2 9 . 78 16 . . 15 Melee 64 | . . . . . . . . . . . 47 3 . . . 2 12 . . . . . . . . . . Ram . | . . . . . . . . . . . . . . . . . . . . . . . . . . . . Kick . | . . . . . . . . . . . . . . . . . . . . . . . . . . . . Crush . | . . . . . . . . . . . . . . . . . . . . . . . . . . . . Escape Stasis 60 | . . . . . . . 6 . . 13 31 . . . . . . . . . . . . . . . 10 Rewire 462 | . . . . . . . 131 2 1 1 31 2 11 . . 2 . 276 . . . . . . . . 5 Trap . | . . . . . . . . . . . . . . . . . . . . . . . . . . . . Miscellaneous . | . . . . . . . . . . . . . . . . . . . . . . . . . . . . Route ------- -11/Scrapyard -10/Materials -9/Materials -9/Mines -9/Exiles -8/Mines -8/Materials -8/Garrison (discovered 3 exits: *Mat x3) -8/Materials -8/Garrison (discovered 4 exits: *Fac x3 / [Mat]) -7/Factory (discovered 3 exits: *Fac / [*Sto] / Gar) -7/Garrison (discovered 3 exits: [*Fac x3]) -7/Factory -7/Lower Caves -7/Lower Caves -7/Data Miner -6/Proximity Caves -6/Factory (discovered 2 exits: *Fac / *Ext) -6/Extension (discovered 3 exits: *Fac x2 / *Cet) -6/Cetus (discovered 3 exits: *Fac x2 / *Arc) -6/Archives (discovered 3 exits: *Fac / *Hub x2) -6/Hub_04(d) -5/Factory (discovered 2 exits: Upp / Gar) -5/Garrison (discovered 3 exits: *Fac x3) -4/Factory -3/Research -2/Research -2/Quarantine (discovered 2 exits: *Sec / *Frg) History --------- Turn | Location | Event 24 | -11/Scrapyard | Discovered new exit (range 15) 69 | -11/Scrapyard | Entered Materials 157 | -10/Materials | Discovered new exit (range 15) 307 | -10/Materials | Entered another Materials area 307 | -9/Materials | Evolved 2 slots: Utility x1, Weapon x1 379 | -9/Materials | Build established: Mutant 687 | -9/Materials | Build established: Gunner 1432 | -9/Materials | Discovered new exit (range 14) 1451 | -9/Materials | Entered Mines 1458 | -9/Mines | Assisted by bots powering up and referring to "LRC-V3" 1468 | -9/Mines | Deemed a non-threat by the Exiles lab entrance 1469 | -9/Mines | Discovered new exit (range 5) 1474 | -9/Mines | Entered Exiles 1474 | -9/Exiles | Accompanied by 3 allies 1502 | -9/Exiles | Met 8R-AWN 1522 | -9/Exiles | Met EX-HEX 1560 | -9/Exiles | Met EX-BIN 1579 | -9/Exiles | Aligned with FarCom system 1580 | -9/Exiles | Given EX-Vault access code 1610 | -9/Exiles | Opened EX-Vault 1616 | -9/Exiles | Found Cloak of Protection 1645 | -9/Exiles | Warned to stay clear of 0b10 Research branches 1677 | -9/Exiles | Met EX-DEC 1719 | -9/Exiles | Discovered new exit (range 10) 1736 | -9/Exiles | Left Exiles lab with Cloak of Protection 1736 | -9/Exiles | Entered Mines 1736 | -8/Mines | Accompanied by 3 allies 1748 | -8/Mines | Discovered new exit (range 9) 1769 | -8/Mines | Entered Materials 1769 | -8/Materials | Accompanied by 3 allies 1769 | -8/Materials | Evolved 2 slots: Propulsion x1, Utility x1 1882 | -8/Materials | Identified exit to Garrison 1892 | -8/Materials | Entered Garrison 1892 | -8/Garrison | Accompanied by 3 allies 2037 | -8/Garrison | Build established: Skirmisher 2176 | -8/Garrison | Triggered checkpoint 2269 | -8/Garrison | Phase Generator disabled 2358 | -8/Garrison | Triggered checkpoint 2394 | -8/Garrison | Build established: Scavenger-Gunner 2450 | -8/Garrison | Triggered checkpoint 2482 | -8/Garrison | Triggered checkpoint 2527 | -8/Garrison | Installed Relay Interface Framework 2606 | -8/Garrison | Lost 4 parts (1p3w) 2662 | -8/Garrison | System corruption reached 10% 2801 | -8/Garrison | Triggered checkpoint 2837 | -8/Garrison | Discovered new exit (range 11) 2849 | -8/Garrison | Triggered checkpoint 3031 | -8/Garrison | Triggered checkpoint 3052 | -8/Garrison | Garrison Relay disabled 3115 | -8/Garrison | Discovered new exit (range 12) 3126 | -8/Garrison | Triggered checkpoint 3133 | -8/Garrison | Garrison Relay disabled 3198 | -8/Garrison | Garrison Relay disabled 3315 | -8/Garrison | Triggered checkpoint 3324 | -8/Garrison | Triggered checkpoint 3365 | -8/Garrison | Found Launcher Loader 3380 | -8/Garrison | Garrison Relay disabled 3420 | -8/Garrison | Triggered checkpoint 3494 | -8/Garrison | Discovered new exit (range 14) 3553 | -8/Garrison | Rescued a captive Derelict 3553 | -8/Garrison | Rescued a captive Derelict 3575 | -8/Garrison | Build established: Commander-Gunner 3659 | -8/Garrison | Entered Materials 3659 | -8/Materials | Accompanied by 14 allies 3933 | -8/Materials | Identified exit to Garrison 3933 | -8/Materials | Entered Garrison 3933 | -8/Garrison | Accompanied by 16 allies 3935 | -8/Garrison | Triggered checkpoint 3987 | -8/Garrison | Discovered new exit (range 53) 3987 | -8/Garrison | Discovered new exit (range 66) 3987 | -8/Garrison | Discovered new exit (range 40) 3987 | -8/Garrison | Discovered new exit (range 21) 4010 | -8/Garrison | Triggered checkpoint 4034 | -8/Garrison | Garrison Relay disabled 4097 | -8/Garrison | Triggered checkpoint 4099 | -8/Garrison | Triggered checkpoint 4104 | -8/Garrison | Core integrity fell below 50% 4108 | -8/Garrison | P-60 Hacker assimilated allied Trooper 3a 4115 | -8/Garrison | Triggered checkpoint 4125 | -8/Garrison | Triggered checkpoint 4161 | -8/Garrison | Triggered checkpoint 4169 | -8/Garrison | Triggered checkpoint 4180 | -8/Garrison | Garrison Relay disabled 4222 | -8/Garrison | Garrison Relay disabled 4353 | -8/Garrison | Expanded RIF knowledge: Command Fork 4396 | -8/Garrison | Expanded RIF knowledge: Command Fork 4405 | -8/Garrison | Triggered checkpoint 4611 | -8/Garrison | Core integrity fell below 20% 4612 | -8/Garrison | Lost 3 parts (1p2w) 4628 | -8/Garrison | Lost 4 allies 4870 | -8/Garrison | Phase Generator disabled 4897 | -8/Garrison | Build established: Scavenger-Gunner 5455 | -8/Garrison | Entered Factory 5455 | -7/Factory | Accompanied by 3 allies 5455 | -7/Factory | Evolved 2 slots: Utility x2 5491 | -7/Factory | Discovered new exit (range 5) 5827 | -7/Factory | P-60 Hacker assimilated allied Transporter 3a 6070 | -7/Factory | Discovered new exit (range 14) 6475 | -7/Factory | Identified exit to Garrison 6480 | -7/Factory | Entered Garrison 6480 | -7/Garrison | Accompanied by 2 allies 6558 | -7/Garrison | Triggered checkpoint 6608 | -7/Garrison | Triggered checkpoint 6710 | -7/Garrison | Garrison Relay disabled 6753 | -7/Garrison | Discovered new exit (range 84) 6753 | -7/Garrison | Discovered new exit (range 66) 6753 | -7/Garrison | Discovered new exit (range 63) 6814 | -7/Garrison | P-60 Hacker assimilated allied Guardian 4b 6819 | -7/Garrison | P-60 Hacker assimilated allied Guardian 4c 6918 | -7/Garrison | Triggered checkpoint 6929 | -7/Garrison | Triggered checkpoint 7231 | -7/Garrison | Build established: Bothacker-Tank 7301 | -7/Garrison | Triggered checkpoint 7345 | -7/Garrison | Destroyed 8 combat bots 7584 | -7/Garrison | Triggered checkpoint 7606 | -7/Garrison | Garrison Relay disabled 7660 | -7/Garrison | Build established: Bothacker-Mutant 7880 | -7/Garrison | Triggered checkpoint 7904 | -7/Garrison | Garrison Relay disabled 8068 | -7/Garrison | Triggered checkpoint 8361 | -7/Garrison | Build established: Bothacker-Skirmisher 8484 | -7/Garrison | Triggered checkpoint 8567 | -7/Garrison | Garrison Relay disabled 8796 | -7/Garrison | Triggered checkpoint 9019 | -7/Garrison | Rescued a captive Derelict 9078 | -7/Garrison | Triggered checkpoint 9320 | -7/Garrison | Triggered checkpoint 9362 | -7/Garrison | Expanded RIF knowledge: Patrol Navigation 9730 | -7/Garrison | Garrison Relay disabled 9800 | -7/Garrison | Entered Factory 9800 | -7/Factory | Accompanied by 5 allies 9868 | -7/Factory | Discovered new exit (range 4) 10128 | -7/Factory | High security lockdown imminent 10208 | -7/Factory | High security lockdown engaged 10208 | -7/Factory | Garrison activated, responded to threat 10265 | -7/Factory | Lost 9 allies 10406 | -7/Factory | Entered Lower Caves 10406 | -7/Lower Caves | Accompanied by 3 allies 10429 | -7/Lower Caves | Learned Factory machine intel 10694 | -7/Lower Caves | Build established: Bothacker-Gunner 10907 | -7/Lower Caves | Attracted the attention of an 0b10 checkpoint 11318 | -7/Lower Caves | Discovered new exit (range 13) 11364 | -7/Lower Caves | Entered another Lower Caves area 11601 | -7/Lower Caves | Encountered a Warlord checkpoint 11630 | -7/Lower Caves | Build established: Scavenger-Mutant 12091 | -7/Lower Caves | Discovered new exit (range 10) 12187 | -7/Lower Caves | Entered Data Miner 12187 | -7/Data Miner | Discovered new exit (range 6) 12199 | -7/Data Miner | Build established: Mutant 12218 | -7/Data Miner | Met Data Miner 12259 | -7/Data Miner | Learned location of Section 7 (-2) 12284 | -7/Data Miner | Received God Mode back door access code from Data Miner 12334 | -7/Data Miner | Entered Proximity Caves 12454 | -6/Proximity Caves | Spotted B-75 Beast 12506 | -6/Proximity Caves | Core integrity fell below 50% 12518 | -6/Proximity Caves | Destroyed B-75 Beast 12553 | -6/Proximity Caves | Lost 5 parts (1p2n1u1w) 12566 | -6/Proximity Caves | Learned Factory terminal intel 12802 | -6/Proximity Caves | Build established: Gunner 12986 | -6/Proximity Caves | Attracted the attention of an 0b10 base 13014 | -6/Proximity Caves | Destroyed 7 combat bots 13159 | -6/Proximity Caves | Attracted the attention of an 0b10 checkpoint 13217 | -6/Proximity Caves | Lost 3 parts (1n1u1w) 13273 | -6/Proximity Caves | Discovered new exit (range 6) 13285 | -6/Proximity Caves | Entered Factory 13285 | -6/Factory | Evolved 2 slots: Propulsion x1, Weapon x1 13286 | -6/Factory | Identified exit to Extension 13287 | -6/Factory | Loaded intel: 276 machine locations 13288 | -6/Factory | Loaded intel: 27 terminal locations 13385 | -6/Factory | Discovered new exit (range 16) 13677 | -6/Factory | Build established: Skirmisher 14176 | -6/Factory | Build established: Scavenger-Gunner 14415 | -6/Factory | Lost 4 parts (1p1u2w) 14432 | -6/Factory | Released all parts (9) 14611 | -6/Factory | Fabricated H-66 Slayer? 14662 | -6/Factory | Build established: Mutant 14724 | -6/Factory | Found Hvy. Reflective Plating 14919 | -6/Factory | Fabricated Thunder Leg? 15111 | -6/Factory | Fabricated Cld. Cesium-ion Thruster (x1) 15223 | -6/Factory | Build established: Skirmisher 15294 | -6/Factory | Entered Extension 15444 | -6/Extension | Rescued a captive Derelict 15445 | -6/Extension | Rescued a captive Derelict 15502 | -6/Extension | Rescued a captive Derelict 15576 | -6/Extension | Build established: Scavenger-Gunner 15790 | -6/Extension | Rescued a captive Derelict 15791 | -6/Extension | Rescued a captive Derelict 15808 | -6/Extension | Rescued a captive Derelict 15848 | -6/Extension | Spotted B-75 Beast 15864 | -6/Extension | Spotted B-75 Beast 15872 | -6/Extension | Destroyed B-75 Beast 15886 | -6/Extension | Destroyed B-75 Beast 15926 | -6/Extension | Lost 4 allies 15967 | -6/Extension | Discovered new exit (range 3) 16040 | -6/Extension | Rescued A7 16386 | -6/Extension | Core integrity fell below 50% 16404 | -6/Extension | Build established: Commander-Gunner 16764 | -6/Extension | Discovered new exit (range 10) 16766 | -6/Extension | Discovered new exit (range 6) 16775 | -6/Extension | Disrupted transfer network 16822 | -6/Extension | Identified exit to Factory 16826 | -6/Extension | Identified exit to Cetus 16842 | -6/Extension | Entered Cetus 16842 | -6/Cetus | Accompanied by 20 allies (A7) 16847 | -6/Cetus | Acquired a Cetus Manufacturing Module code from A7 16862 | -6/Cetus | Spotted Cetus Guard 16862 | -6/Cetus | Spotted Cetus Guard 16865 | -6/Cetus | Spotted Cetus Guard 16865 | -6/Cetus | Spotted Cetus Guard 16872 | -6/Cetus | Allies destroyed Cetus Guard 16877 | -6/Cetus | Allies destroyed Cetus Guard 16879 | -6/Cetus | Allies destroyed Cetus Guard 16880 | -6/Cetus | Allies destroyed Cetus Guard 16932 | -6/Cetus | System corruption reached 10% 17022 | -6/Cetus | Started Cetus Manufacturing Module 17047 | -6/Cetus | Manufactured an Enhanced Grunt 17072 | -6/Cetus | Manufactured an Enhanced Grunt 17097 | -6/Cetus | Manufactured an Enhanced Grunt 17122 | -6/Cetus | Manufactured an Enhanced Grunt 17147 | -6/Cetus | Manufactured an Enhanced Grunt 17309 | -6/Cetus | Escorted A7 to Cetus Mainframe 17416 | -6/Cetus | Discovered exit to Factory (range 16) 17544 | -6/Cetus | Discovered new exit (range 16) 17570 | -6/Cetus | Spotted Cetus Guard 17571 | -6/Cetus | Spotted Cetus Guard 17574 | -6/Cetus | Spotted Cetus Guard 17577 | -6/Cetus | Destroyed Cetus Guard 17588 | -6/Cetus | Allies destroyed Cetus Guard 17589 | -6/Cetus | Spotted Cetus Guard 17592 | -6/Cetus | Security sweep announced 17593 | -6/Cetus | Allies destroyed Cetus Guard 17594 | -6/Cetus | Destroyed Cetus Guard 17607 | -6/Cetus | Discovered exit to Factory (range 16) 17615 | -6/Cetus | Met Revision 17 17626 | -6/Cetus | Lost 3 allies 17740 | -6/Cetus | Identified exit to Archives 17806 | -6/Cetus | Entered Archives 17806 | -6/Archives | Accompanied by 19 allies (A7) 17811 | -6/Archives | Received a hacking code to weaken MAIN.C 17860 | -6/Archives | Unable to access archive contents 17863 | -6/Archives | Lost 8 allies 17864 | -6/Archives | Discovered new exit (range 16) 17876 | -6/Archives | Unable to access archive contents 17880 | -6/Archives | Discovered exit to Factory (range 15) 17944 | -6/Archives | Discovered new exit (range 16) 17969 | -6/Archives | Identified exit to Hub_04(d) 17987 | -6/Archives | Entered Hub_04(d) 17987 | -6/Hub_04(d) | Accompanied by 10 allies 18097 | -6/Hub_04(d) | Discovered exit to Factory (range 15) 18139 | -6/Hub_04(d) | Network Hub disabled 18143 | -6/Hub_04(d) | Network Hub disabled 18164 | -6/Hub_04(d) | Spotted Lightning 18166 | -6/Hub_04(d) | Spotted Lightning 18167 | -6/Hub_04(d) | Spotted Lightning 18169 | -6/Hub_04(d) | Entered Factory 18169 | -5/Factory | Evolved 2 slots: Utility x2 18170 | -5/Factory | Identified exit to Upper Caves 18194 | -5/Factory | Lost 6 allies 18206 | -5/Factory | Identified exit to Garrison 18206 | -5/Factory | Entered Garrison 18270 | -5/Garrison | Triggered checkpoint 18332 | -5/Garrison | Discovered new exit (range 56) 18332 | -5/Garrison | Discovered new exit (range 55) 18332 | -5/Garrison | Discovered new exit (range 61) 18388 | -5/Garrison | Garrison Relay disabled 18393 | -5/Garrison | Build established: Scavenger-Gunner 18606 | -5/Garrison | Spotted B-75 Beast 18619 | -5/Garrison | Destroyed B-75 Beast 18702 | -5/Garrison | Triggered checkpoint 18767 | -5/Garrison | Lost 8 parts (1p1n2u4w) 19015 | -5/Garrison | Expanded RIF knowledge: Autooverride 19128 | -5/Garrison | Triggered checkpoint 19174 | -5/Garrison | Found Relay Coupler [Proto] 19176 | -5/Garrison | Found Relay Coupler [Proto] 19191 | -5/Garrison | Core integrity fell below 50% 19200 | -5/Garrison | Found Relay Coupler [Proto] 19352 | -5/Garrison | Identified exit to Factory 19353 | -5/Garrison | Entered Factory 19353 | -4/Factory | Evolved 2 slots: Power x1, Propulsion x1 19516 | -4/Factory | Found Prototype Launcher 19516 | -4/Factory | Identified Smartbomb Launcher 19694 | -4/Factory | Spotted B-86 Titan 19735 | -4/Factory | Discovered new exit (range 15) 19744 | -4/Factory | Identified exit to Research 19744 | -4/Factory | Entered Research 19744 | -3/Research | Evolved 2 slots: Propulsion x2 19767 | -3/Research | Lost 9 parts (1p5n2u1w) 19798 | -3/Research | Discovered new exit (range 5) 19801 | -3/Research | Identified exit to Research 19895 | -3/Research | Entered another Research area 19895 | -2/Research | Evolved 2 slots: Utility x2 20005 | -2/Research | Discovered new exit (range 8) 20009 | -2/Research | Identified exit to Quarantine 20009 | -2/Research | Entered Quarantine 20010 | -2/Quarantine | Maximum security lockdown engaged 20010 | -2/Quarantine | Cryocooling Duct disabled 20025 | -2/Quarantine | Ambient heat levels rising (+20) 20025 | -2/Quarantine | Spotted Alpha 7 20043 | -2/Quarantine | Assimilated Alpha 7 with formatsys_high 20155 | -2/Quarantine | Spotted Executioner 20155 | -2/Quarantine | Spotted Executioner 20203 | -2/Quarantine | Build established: Gunner 20257 | -2/Quarantine | Found Alien Reactor 20257 | -2/Quarantine | Identified Matter Drive 20278 | -2/Quarantine | Spotted Investigator 20279 | -2/Quarantine | Scanned by Researcher 20292 | -2/Quarantine | System corruption reached 10% 20306 | -2/Quarantine | Core integrity fell below 50% 20322 | -2/Quarantine | Lost 16 parts (2p4n6u4w) 20322 | -2/Quarantine | Spotted Fortress 20356 | -2/Quarantine | Discovered new exit (range 5) 20356 | -2/Quarantine | Discovered new exit (range 6) 20358 | -2/Quarantine | Identified exit to Section 7 20362 | -2/Quarantine | Identified exit to Protoforge 20371 | -2/Quarantine | Core integrity fell below 20% 20381 | -2/Quarantine | Destroyed by P-80 Master with Gamma Rifle Last Messages --------------- 20305_ Detecting nearby Garrison Access. 20310_ E-15 Imp destroyed. 20313_ Acquired Unknown Flight Unit. 20313_ Identified Cesium-ion Thruster. 20319_ System corrupted: Component data lost. [Achievement: Nope] 20324_ ALERT: Suspected Assembled signals approaching deep research branches, engaging lockdown procedures. 20336_ System corrupted: Component data lost. 20352_ P-80 Master resets P-80 Master, system corruption cleaned. 20354_ Hds. Centrium Leg destroyed. 20354_ Cesium-ion Thruster destroyed. 20356_ EXIT=FOUND (Lockdown) 20358_ EXIT=IDENTIFIED: SECTION 7 (Lockdown) 20359_ System corrupted: Matter fused (-10). 20360_ ALERT: Heavy assault forces dispatched. 20362_ EXIT=IDENTIFIED: PROTOFORGE (Lockdown) 20373_ Adv. Targeting Computer destroyed. 20374_ System corrupted: Substantial component data lost. Map ----- +----------------------------------------------------+ | ????????????????????????????? | | ????????????????????????????? | | ????????????????????????????? | | ????????????????????????????? | | ????????????????????????????? | | ????????????????????????????? | | ????????????????????????????? | | ????????????????????????????? | | ????????????????????????????? | | ????????????????????????????? | | ????????????????????????????? | | ????????????????????????????? | | ????????????????????????????? | | ????????????????????????????? | | ????????????????????????????? | | ????????????????????????????? | | ????????????????????????????? | | ????????????????????????????? | | ????????????????????????????? | | ????????????????????????????? | | ????????????????????????????? | | ????????????????????????????? | | ????????????????????????????? | | ????????????????????????????? | | ????????????????????????##### | | #######################?#@ # | | ###pp # | | / # | | / # | | / # | | / # | | ### > # | | #######################?# # | | ????????????????????????##### | | ????????????????????????????? | | ????????????????????????????? | | ????????????????????????????? | | ????????????????????????????? | | ????????????????????????????? | | ????????????????????????????? | | ????????????????????????????? | | ????????????????????????????? | | ????????????????????????????? | | ????????????????????????????? | | ????????????????????????????? | | ????????????????????????????? | | ????????????????????????????? | | ????????????????????????????? | | ????????????????????????????? | | ????????????????????????????? | +----------------------------------------------------+ Best States ------------- Heat Dissipation 78 Energy Generation 25 Energy Capacity 540 Matter Stores 300 Matter Capacity 300 Sight Range 16 Terrain Scan Range 24 Terrain Scan Density 10 Jamming Range 12 Cloak Strength 5 Armor Coverage 450 Propulsion Shielding 66 Weapon Shielding 66 Evasion (%) 77 Targeting Accuracy 16 Melee Accuracy 8 Launcher Accuracy 20 Target Analysis 5 Core Analysis 9 Recoil Reduction 4 Matter Filtering 50 Particle Charging 20 Relay Coupler Types 4 Relay Coupler Value 105 Authchip Count 3 Item Schematics ----------------- Disposable Heat Sink | -9/Materials | Extracted Hvy. Hammer | -9/Materials | Extracted Shield Generator | -9/Materials | Extracted Lgt. Ion Engine | -9/Materials | Extracted EMP Blaster | -9/Materials | Extracted Assault Rifle | -9/Materials | Extracted Sml. Matter Pod | -9/Materials | Extracted EM Pulse Gun | -9/Materials | Extracted Combat Drone Bay | -7/Data Miner | Free Cld. Cesium-ion Thruster | -7/Data Miner | Free Lgt. Regenerative Plating | -7/Data Miner | Free Focal Shield | -7/Data Miner | Free Hvy. Phase Cannon | -7/Data Miner | Free Thermal Defense Suite | -7/Data Miner | Free Thunder Leg | -7/Data Miner | Free Imp. Heavy Laser | -7/Data Miner | Free Imp. Weapon Cycler | -7/Data Miner | Free Imp. Heavy Treads | -7/Data Miner | Free Adv. Focal Shield | -7/Data Miner | Free Robot Schematics ------------------ H-66 Slayer | -7/Data Miner | Free L-41 Fighter | -7/Data Miner | Free G-50 Soldier | -7/Data Miner | Free W-25 Informer | -7/Data Miner | Free B-48 Gladiator | -7/Data Miner | Free Fabricated ------------ H-66 Slayer | x2 | -6/Factory | Authchip Thunder Leg | x2 | -6/Factory | Authchip Cld. Cesium-ion Thruster | x1 | -6/Factory | Authchip Repaired ---------- Nothing Studied --------- None Alien Tech Used ----------------- Matter Drive Achievements -------------- Fishing Tech Hornet's Nest Main Advantage Nope Oppo Buddy Powerful Protocols Project G-00 Revising The Future Challenges ------------ None Game ------ Seed LobotomyFlakArchive Manual? 0 Play Time 03:08:08 Cumulative 185.5 hours Start 2026.04.04 @ 13:47:37 End 2026.04.06 @ 18:58:09 Sessions 3 Manual Loads 0 Difficulty Rogue Special Mode None Game No. 311 Rogue 311 Adventurer 0 Explorer 0 Win Type - Total 1 Types 1/0/0/0/0/0/0/0/0/0 Lore% 58 Gallery% 58 Achievement% 44 Wizard Run 0 Options --------- Layout 2 ASCII 0 Keyboard 1 Movement Numpad Keybinds 0 Fullscreen 1 Font 20/SmallcapsGlow Map View 64x51 Zoom Use 0% Tactical HUD 1 Map Filters NONE Filters NONE Steam 1 RUN: 3c56c440-ced5-4330-a777-5cbbee14b9d6